bitfinex/quotes_BTCUSD_20241002
["timestamp","ask_amount","ask_price","bid_price","bid_amount"]
[1727870247158,0.45814397,61295.0,61294.0,0.1590617]
[1727870247820,0.29499897,61295.0,61294.0,0.1590617]
[1727870248056,0.29499897,61295.0,61294.0,0.070654]
[1727870248721,0.29299897,61295.0,61294.0,0.233802]
[1727870248938,0.29299897,61295.0,61294.0,0.070654]
[1727870249903,0.29299897,61295.0,61294.0,0.233802]
[1727870250590,0.02639897,61295.0,61294.0,0.233802]
[1727870250807,0.02639897,61295.0,61294.0,0.39868382]
[1727870253528,0.02639897,61295.0,61294.0,0.47189292]
[1727870253816,0.000819,61295.0,61294.0,0.72600862]
[1727870254269,0.000819,61295.0,61294.0,0.65279952]
[1727870254495,0.000819,61295.0,61294.0,0.7748147]
[1727870254716,0.000819,61295.0,61294.0,0.65279952]
[1727870255188,0.000819,61295.0,61294.0,0.96891218]
[1727870255429,0.000819,61295.0,61294.0,0.96896822]
[1727870255689,0.000819,61295.0,61294.0,1.07109397]
[1727870256127,0.000819,61295.0,61294.0,1.06509397]
[1727870256582,0.000819,61295.0,61294.0,1.07909397]
[1727870256804,0.000819,61295.0,61294.0,1.06509397]
[1727870257024,0.000819,61295.0,61294.0,1.07909397]
[1727870257263,0.000819,61295.0,61294.0,1.07309397]
[1727870257785,0.000819,61295.0,61294.0,1.08709397]
[1727870258013,0.000819,61295.0,61294.0,1.07797092]
[1727870258460,0.17088766,61304.0,61303.0,0.38638442]
[1727870258666,0.17088766,61304.0,61303.0,0.87837468]
[1727870258884,0.24535261,61311.0,61303.0,0.87837468]
[1727870258885,0.24535261,61311.0,61310.0,0.195825]
[1727870259315,0.0775,61315.0,61314.0,0.163094]
[1727870259565,0.0775,61315.0,61314.0,0.18888529]
[1727870259783,0.0775,61315.0,61314.0,0.29533926]
[1727870261320,0.10307195,61315.0,61314.0,0.29533926]
[1727870261764,0.10307195,61315.0,61314.0,0.30233926]
[1727870261969,0.0775,61315.0,61314.0,0.30233926]
[1727870262418,0.0775,61315.0,61314.0,0.30933926]
[1727870264920,0.10307302,61315.0,61314.0,0.30933926]
[1727870265789,0.0775,61315.0,61314.0,0.30933926]
[1727870270459,0.0775,61315.0,61314.0,0.14624526]
[1727870270685,0.0775,61315.0,61314.0,0.03979129]
[1727870270686,0.240592,61315.0,61314.0,0.03979129]
[1727870270906,0.439092,61315.0,61314.0,0.03979129]
[1727870271142,0.441092,61315.0,61314.0,0.014]
[1727870271596,0.441092,61315.0,61314.0,0.007]
[1727870271813,0.441092,61315.0,61314.0,0.011]
[1727870272261,0.441911,61315.0,61314.0,0.011]
[1727870272483,0.441911,61315.0,61314.0,0.004]
[1727870274065,0.165098,61313.0,61309.0,0.163107]
[1727870274293,0.002,61311.0,61310.0,0.10609206]
[1727870274512,0.002,61311.0,61310.0,0.13253567]
[1727870274727,0.002,61311.0,61310.0,0.29564067]
[1727870275179,0.002,61311.0,61310.0,0.13253567]
[1727870275840,0.02757381,61311.0,61310.0,0.13453567]
[1727870276071,0.02757381,61311.0,61310.0,0.13753567]
[1727870276281,0.10997381,61311.0,61310.0,0.13753567]
[1727870276513,0.10997381,61311.0,61310.0,0.30064067]
[1727870276733,0.10797381,61311.0,61310.0,0.30064067]
[1727870277454,0.0824,61311.0,61310.0,0.29764067]
[1727870277697,0.0844,61311.0,61310.0,0.29764067]
[1727870277945,0.0824,61311.0,61310.0,0.30364067]
[1727870279362,0.0824,61311.0,61310.0,0.30164067]
[1727870279888,0.0824,61311.0,61310.0,0.30764067]
[1727870280328,0.10797355,61311.0,61310.0,0.30764067]
[1727870283142,0.10997355,61311.0,61310.0,0.30764067]
[1727870283613,0.30187355,61311.0,61310.0,0.30764067]
[1727870283836,0.30387355,61311.0,61310.0,0.30764067]
[1727870284081,0.30387355,61311.0,61310.0,0.03844361]
[1727870284308,0.46697555,61311.0,61310.0,0.03844361]
[1727870284542,0.46779455,61311.0,61310.0,0.03844361]
[1727870284777,0.46779455,61311.0,61310.0,0.012]
[1727870284992,0.442221,61311.0,61310.0,0.03246576]
[1727870285229,0.442221,61311.0,61310.0,0.03346576]
[1727870285458,0.442221,61311.0,61310.0,0.007]
[1727870285679,0.279119,61311.0,61310.0,0.001]
[1727870286162,0.279119,61311.0,61310.0,0.02746576]
[1727870286401,0.277119,61311.0,61310.0,0.08241794]
[1727870286633,0.279119,61311.0,61310.0,0.08241794]
[1727870287095,0.279119,61311.0,61310.0,0.24852294]
[1727870287344,0.279119,61311.0,61310.0,0.24752294]
[1727870287573,0.279119,61311.0,61310.0,0.08841794]
[1727870287825,0.30469346,61311.0,61310.0,0.08841794]
[1727870288290,0.279119,61311.0,61310.0,0.08841794]
[1727870288527,0.30469358,61311.0,61310.0,0.08841794]
[1727870288990,0.442221,61311.0,61310.0,0.08841794]
[1727870290630,0.442221,61311.0,61310.0,0.03346576]
[1727870291108,0.277119,61311.0,61310.0,0.03346576]
[1727870291341,0.10879365,61311.0,61310.0,0.19657076]
[1727870292547,0.02639365,61311.0,61310.0,0.19657076]
[1727870292777,0.02639365,61311.0,61310.0,0.43932722]
[1727870293005,0.000819,61311.0,61310.0,0.69148026]
[1727870293243,0.000819,61311.0,61310.0,0.61827667]
[1727870293469,0.000819,61311.0,61310.0,0.71588146]
[1727870293924,0.000819,61311.0,61310.0,0.69837901]
[1727870294156,0.000819,61311.0,61310.0,0.74854449]
[1727870294390,0.000819,61311.0,61310.0,0.6509397]
[1727870294636,0.000819,61311.0,61310.0,0.74854449]
[1727870294877,0.000819,61311.0,61310.0,0.74454449]
[1727870295359,0.000819,61311.0,61310.0,0.74154449]
[1727870295813,0.000819,61311.0,61310.0,0.74854449]
[1727870296050,0.000819,61311.0,61310.0,0.74154449]
[1727870296301,0.02639056,61311.0,61310.0,0.74854449]
[1727870296551,0.02639056,61311.0,61310.0,0.78294569]
[1727870296803,0.02639056,61311.0,61310.0,0.6539397]
[1727870297037,0.02639056,61311.0,61310.0,0.6639397]
[1727870297265,0.02639056,61311.0,61310.0,0.6539397]
[1727870297717,0.02639056,61311.0,61310.0,0.6439397]
[1727870297955,0.02639056,61311.0,61310.0,0.6579397]
[1727870298188,0.000819,61311.0,61310.0,0.6579397]
[1727870298428,0.000819,61311.0,61310.0,0.66275729]
[1727870298656,0.000819,61311.0,61310.0,0.6719397]
[1727870299379,0.000819,61311.0,61310.0,0.67179571]
[1727870299619,0.000819,61311.0,61310.0,0.83649016]
[1727870299848,0.000819,61311.0,61310.0,0.84149016]
[1727870300553,0.000819,61311.0,61310.0,0.92749016]
[1727870301013,0.000819,61311.0,61310.0,0.94149016]
[1727870301791,0.000819,61311.0,61310.0,0.92749016]
[1727870302033,0.000819,61311.0,61310.0,0.94149016]
[1727870307528,0.000819,61311.0,61310.0,1.08800072]
[1727870307989,0.000819,61311.0,61310.0,0.94149016]
[1727870310096,0.000819,61311.0,61310.0,0.92749016]
[1727870310330,0.000819,61311.0,61310.0,0.91349016]
[1727870310572,0.000819,61311.0,61310.0,1.07400996]
[1727870311049,0.000819,61311.0,61310.0,1.06000996]
[1727870311274,0.000819,61311.0,61310.0,1.07400996]
[1727870311763,0.000819,61311.0,61310.0,1.19891541]
[1727870311989,0.000819,61311.0,61310.0,1.21291541]
[1727870312248,0.000818,61320.0,61319.0,0.32070645]
[1727870312472,0.000818,61320.0,61319.0,0.35626129]
[1727870312695,0.000818,61320.0,61319.0,0.38256185]
[1727870312924,0.000818,61320.0,61319.0,0.45580888]
[1727870313148,0.000818,61320.0,61319.0,0.71285356]
[1727870313385,0.000718,61320.0,61319.0,0.45580888]
[1727870313624,0.080118,61323.0,61322.0,0.12490545]
[1727870313859,0.080118,61323.0,61322.0,0.42318164]
[1727870314347,0.080018,61323.0,61322.0,0.42318164]
[1727870314567,0.079218,61323.0,61322.0,0.42318164]
[1727870315008,0.079118,61323.0,61322.0,0.43418164]
[1727870315244,0.079018,61323.0,61322.0,0.30927619]
[1727870315465,0.078218,61323.0,61322.0,0.43418164]
[1727870315968,0.078018,61323.0,61322.0,0.44518164]
[1727870316184,0.077518,61323.0,61322.0,0.44518164]
[1727870316411,0.10298439,61323.0,61322.0,0.44518164]
[1727870316654,0.077418,61323.0,61322.0,0.44518164]
[1727870316879,0.077018,61323.0,61322.0,0.44518164]
[1727870317111,0.076718,61323.0,61322.0,0.44518164]
[1727870317351,0.076518,61323.0,61322.0,0.44518164]
[1727870317784,0.076118,61323.0,61322.0,0.44518164]
[1727870319856,0.076937,61323.0,61322.0,0.44518164]
[1727870323360,0.076937,61323.0,61322.0,0.32027619]
[1727870323591,0.29450366,61323.0,61322.0,0.32027619]
[1727870327938,0.29450366,61323.0,61322.0,0.15720319]
[1727870328160,0.29450366,61323.0,61322.0,0.12448319]
[1727870328386,0.45757366,61323.0,61322.0,0.12448319]
[1727870329086,0.29450366,61323.0,61322.0,0.12448319]
[1727870329310,0.45957366,61323.0,61322.0,0.04828316]
[1727870329765,0.29450366,61323.0,61322.0,0.022]
[1727870330057,0.29450366,61323.0,61322.0,0.28797845]
[1727870330277,0.29450366,61323.0,61322.0,0.3852795]
[1727870330504,0.29450366,61323.0,61322.0,0.41858456]
[1727870330770,0.29450366,61323.0,61322.0,0.41558456]
[1727870331004,0.29450366,61323.0,61322.0,0.41158456]
[1727870331267,0.29450366,61323.0,61322.0,0.41458456]
[1727870331718,0.29450366,61323.0,61322.0,0.41622256]
[1727870332405,0.29450366,61323.0,61322.0,0.44594256]
[1727870332632,0.29450366,61323.0,61322.0,0.44994256]
[1727870332877,0.29450366,61323.0,61322.0,0.45794256]
[1727870333104,0.268937,61323.0,61322.0,0.44594256]
[1727870333333,0.268937,61323.0,61322.0,0.45994256]
[1727870333781,0.268937,61323.0,61322.0,0.45294256]
[1727870334241,0.268937,61323.0,61322.0,0.45494256]
[1727870335419,0.268937,61323.0,61322.0,0.50384196]
[1727870335891,0.268937,61323.0,61322.0,0.51284196]
[1727870336584,0.268937,61323.0,61322.0,0.53729166]
[1727870336809,0.268937,61323.0,61322.0,0.41238621]
[1727870337033,0.268937,61323.0,61322.0,0.33903711]
[1727870337476,0.268937,61323.0,61322.0,0.66975099]
[1727870338273,0.268937,61323.0,61322.0,0.33903711]
[1727870338441,0.268937,61323.0,61322.0,0.59642636]
[1727870338860,0.268937,61323.0,61322.0,0.33903711]
[1727870339064,0.268937,61323.0,61322.0,0.79500414]
[1727870339290,0.268937,61323.0,61322.0,0.79504937]
[1727870339493,0.268937,61323.0,61322.0,0.72160321]
[1727870340098,0.268937,61323.0,61322.0,0.81950466]
[1727870340510,0.29450456,61323.0,61322.0,0.81950466]
[1727870341545,0.29450456,61323.0,61322.0,0.72160321]
[1727870342712,0.29450456,61323.0,61322.0,0.81956087]
[1727870342935,0.29450456,61323.0,61322.0,0.69465542]
[1727870343164,0.268937,61323.0,61322.0,0.69465542]
[1727870343393,0.268937,61323.0,61322.0,0.49886242]
[1727870343633,0.434007,61323.0,61322.0,0.09492837]
[1727870343877,0.434007,61323.0,61322.0,0.04594306]
[1727870344437,0.165097,61313.0,61312.0,0.04898531]
[1727870344662,0.165097,61313.0,61312.0,0.27963239]
[1727870344663,0.427397,61313.0,61312.0,0.27963239]
[1727870344889,0.427397,61313.0,61312.0,0.06061192]
[1727870345118,0.427397,61313.0,61312.0,0.02633214]
[1727870345352,0.165118,61305.0,61304.0,0.24699061]
[1727870345584,0.430118,61305.0,61304.0,0.24699061]
[1727870345803,0.430118,61305.0,61304.0,0.02799849]
[1727870346026,0.430118,61305.0,61304.0,0.05935757]
[1727870346493,0.4556941,61305.0,61304.0,0.02799849]
[1727870346740,0.4556941,61305.0,61304.0,0.03999849]
[1727870347430,0.430118,61305.0,61304.0,0.03999849]
[1727870348871,0.430118,61305.0,61304.0,0.013638]
[1727870350589,0.45569558,61305.0,61304.0,0.013638]
[1727870350813,0.45369558,61305.0,61304.0,0.013638]
[1727870351501,0.45369558,61305.0,61304.0,0.0313147]
[1727870351502,0.29057758,61305.0,61304.0,0.0313147]
[1727870351741,0.02557758,61305.0,61304.0,0.21426316]
[1727870351986,0.02557758,61305.0,61304.0,0.1944357]
[1727870352212,0.02557758,61305.0,61304.0,0.21426316]
[1727870354535,0.02557758,61305.0,61304.0,0.05114216]
[1727870354773,0.46239558,61305.0,61304.0,0.03346546]
[1727870355230,0.46439558,61305.0,61304.0,0.013638]
[1727870355460,0.46439558,61305.0,61304.0,0.03349712]
[1727870355712,0.46439558,61305.0,61304.0,0.013638]
[1727870355938,0.46439558,61305.0,61304.0,0.03349712]
[1727870356169,0.46439558,61305.0,61304.0,0.013638]
[1727870356386,0.46439558,61305.0,61304.0,0.03349712]
[1727870356618,0.46439558,61305.0,61304.0,0.013638]
[1727870356837,0.46439558,61305.0,61304.0,0.03352213]
[1727870357069,0.46439558,61305.0,61304.0,0.013638]
[1727870357297,0.46439558,61305.0,61304.0,0.03352213]
[1727870357739,0.46239558,61305.0,61304.0,0.05318744]
[1727870358647,0.436818,61305.0,61304.0,0.05318744]
[1727870358877,0.436818,61305.0,61304.0,0.03352213]
[1727870361664,0.46239457,61305.0,61304.0,0.03352213]
[1727870363002,0.436818,61305.0,61304.0,0.03352213]
[1727870364185,0.438818,61305.0,61304.0,0.03352213]
[1727870365774,0.46239468,61305.0,61304.0,0.03352213]
[1727870366208,0.46439468,61305.0,61304.0,0.03352213]
[1727870369646,0.30127668,61305.0,61304.0,0.03352213]
[1727870369863,0.29927668,61305.0,61304.0,0.03352213]
[1727870370314,0.46239468,61305.0,61304.0,0.03352213]
[1727870370538,0.46439468,61305.0,61304.0,0.03352213]
[1727870370760,0.29927668,61305.0,61304.0,0.19664313]
[1727870371016,0.30127668,61305.0,61304.0,0.12170954]
[1727870371209,0.46439468,61305.0,61304.0,0.12170954]
[1727870372107,0.46439468,61305.0,61304.0,0.03352213]
[1727870372783,0.46439468,61305.0,61304.0,0.013638]
[1727870373001,0.46239468,61305.0,61304.0,0.02995575]
[1727870373228,0.46239468,61305.0,61304.0,0.013638]
[1727870373456,0.46439468,61305.0,61304.0,0.02995575]
[1727870373676,0.46439468,61305.0,61304.0,0.05253217]
[1727870373913,0.46439468,61305.0,61304.0,0.06884963]
[1727870375484,0.46439468,61305.0,61304.0,0.02995546]
[1727870375917,0.46439468,61305.0,61304.0,0.013638]
[1727870381509,0.438818,61305.0,61304.0,0.013638]
[1727870381725,0.438818,61305.0,61304.0,0.007638]
[1727870381944,0.441818,61305.0,61304.0,0.007638]
[1727870382390,0.438818,61305.0,61304.0,0.001638]
[1727870382603,0.46739708,61305.0,61304.0,0.001638]
[1727870382835,0.47139708,61305.0,61304.0,0.001638]
[1727870383041,0.46839708,61305.0,61304.0,0.001638]
[1727870383770,0.47239708,61305.0,61304.0,0.001638]
[1727870385499,0.446818,61305.0,61304.0,0.001638]
[1727870388434,0.47239759,61305.0,61304.0,0.001638]
[1727870391649,0.446818,61305.0,61304.0,0.001638]
[1727870395021,0.47239776,61305.0,61304.0,0.001638]
[1727870401522,0.46839776,61305.0,61304.0,0.001638]
[1727870402041,0.46839776,61305.0,61304.0,0.002638]
[1727870402268,0.442818,61305.0,61304.0,0.002638]
[1727870403001,0.442818,61305.0,61304.0,0.001638]
[1727870403230,0.438818,61305.0,61304.0,0.001638]
[1727870403453,0.440818,61305.0,61304.0,0.001638]
[1727870403909,0.248118,61305.0,61304.0,0.001638]
[1727870404182,0.002,61305.0,61304.0,0.164759]
[1727870404415,0.167118,61305.0,61304.0,0.002638]
[1727870404641,0.004,61305.0,61304.0,0.002638]
[1727870405074,0.165118,61305.0,61304.0,0.002638]
[1727870405298,0.166118,61305.0,61304.0,0.001638]
[1727870405513,0.003,61305.0,61304.0,0.001638]
[1727870405740,0.166118,61305.0,61304.0,0.0752217]
[1727870405966,0.163118,61305.0,61304.0,0.0752217]
[1727870406200,0.163118,61305.0,61304.0,0.0782217]
[1727870406443,0.326225,61308.0,61304.0,0.0782217]
[1727870406717,0.163117,61306.0,61304.0,0.0782217]
[1727870406909,0.002,61305.0,61304.0,0.0772217]
[1727870407130,0.002,61305.0,61304.0,0.2383427]
[1727870407574,0.002,61307.0,61305.0,0.163116]
[1727870407798,0.165117,61306.0,61304.0,0.0772217]
[1727870408316,0.002,61305.0,61304.0,0.0772217]
[1727870408528,0.002,61307.0,61304.0,0.0792217]
[1727870408774,0.165115,61307.0,61305.0,0.04054787]
[1727870409228,0.165118,61305.0,61304.0,0.002638]
[1727870409688,0.165118,61305.0,61304.0,0.001638]
[1727870409914,0.163118,61305.0,61304.0,0.001638]
[1727870410580,0.165116,61306.0,61304.0,0.002638]
[1727870410816,0.18869502,61305.0,61304.0,0.002638]
[1727870411045,0.18869502,61305.0,61304.0,0.001638]
[1727870411274,0.18869502,61305.0,61304.0,0.003638]
[1727870411502,0.18869502,61305.0,61304.0,0.001638]
[1727870411740,0.18869502,61305.0,61304.0,0.002638]
[1727870411962,0.19069502,61305.0,61304.0,0.0600079]
[1727870412225,0.19069502,61305.0,61304.0,0.0610079]
[1727870412463,0.18869502,61305.0,61304.0,0.003638]
[1727870412903,0.19069502,61305.0,61304.0,0.005638]
[1727870413599,0.02557702,61305.0,61304.0,0.005638]
[1727870413845,0.02557702,61305.0,61304.0,0.168759]
[1727870414341,0.326185,61315.0,61304.0,0.168759]
[1727870414342,0.0828,61315.0,61312.0,0.326198]
[1727870414577,0.24535261,61313.0,61312.0,0.12501766]
[1727870414797,0.165107,61310.0,61308.0,0.04894754]
[1727870415030,0.163116,61306.0,61305.0,0.04894754]
[1727870415254,0.163118,61305.0,61304.0,0.003638]
[1727870415488,0.164118,61305.0,61304.0,0.10147758]
[1727870415723,0.166118,61305.0,61304.0,0.012638]
[1727870415946,0.246818,61305.0,61304.0,0.012638]
[1727870416184,0.245818,61305.0,61304.0,0.001638]
[1727870416401,0.56595536,61305.0,61304.0,0.001638]
[1727870417309,0.56695536,61305.0,61304.0,0.008638]
[1727870417534,0.5935344,61305.0,61304.0,0.015638]
[1727870418437,0.5925344,61305.0,61304.0,0.008638]
[1727870418687,0.5975344,61305.0,61304.0,0.008638]
[1727870418912,1.2168514,61305.0,61304.0,0.008638]
[1727870419390,1.2158514,61305.0,61304.0,0.001638]
[1727870419885,1.1736704,61305.0,61304.0,0.001638]
[1727870420111,0.6015344,61305.0,61304.0,0.001638]
[1727870420338,0.47649704,61305.0,61304.0,0.001638]
[1727870421082,0.46925305,61305.0,61304.0,0.001638]
[1727870421535,0.31337904,61305.0,61304.0,0.001638]
[1727870421987,0.11127904,61305.0,61304.0,0.164759]
[1727870422216,0.03057904,61305.0,61304.0,0.19373864]
[1727870422450,0.03257904,61305.0,61304.0,0.05599808]
[1727870422954,0.46019704,61305.0,61304.0,0.02701844]
[1727870423184,0.45519704,61305.0,61304.0,0.001638]
[1727870423423,0.429618,61305.0,61304.0,0.001638]
[1727870423681,0.62020973,61305.0,61304.0,0.002638]
[1727870423940,0.97903173,61305.0,61304.0,0.002638]
[1727870424167,0.97903173,61305.0,61304.0,0.001638]
[1727870424168,0.98203173,61305.0,61304.0,0.001638]
[1727870424403,0.98403173,61305.0,61304.0,0.001638]
[1727870424649,0.98903173,61305.0,61304.0,0.001638]
[1727870426645,1.01461166,61305.0,61304.0,0.001638]
[1727870427118,0.46519793,61305.0,61304.0,0.001638]
[1727870430588,0.73020973,61305.0,61304.0,0.001638]
[1727870430868,0.529245,61295.0,61294.0,0.001638]
[1727870432263,0.55482946,61295.0,61294.0,0.001638]
[1727870432717,0.56182946,61295.0,61294.0,0.002638]
[1727870432927,0.536245,61295.0,61294.0,0.002638]
[1727870433368,0.54220333,61295.0,61294.0,0.003638]
[1727870436143,0.56778784,61295.0,61294.0,0.003638]
[1727870436377,0.56778784,61295.0,61294.0,0.003538]
[1727870436599,0.56778784,61295.0,61294.0,0.003038]
[1727870436816,0.56778784,61295.0,61294.0,0.002738]
[1727870437288,0.56778784,61295.0,61294.0,0.002538]
[1727870437510,0.56778784,61295.0,61294.0,0.001938]
[1727870437727,0.56778784,61295.0,61294.0,0.001838]
[1727870438165,0.56778784,61295.0,61294.0,0.001538]
[1727870438397,0.56778784,61295.0,61294.0,0.001038]
[1727870438633,0.56778784,61295.0,61294.0,0.000938]
[1727870439111,0.56778784,61295.0,61294.0,0.000538]
[1727870439332,0.56778784,61295.0,61294.0,0.000138]
[1727870439551,0.26511133,61292.0,61291.0,0.001574]
[1727870439782,2.77198333,61292.0,61291.0,0.001574]
[1727870440004,2.74233733,61292.0,61291.0,0.001174]
[1727870440228,2.74433733,61292.0,61291.0,0.000774]
[1727870440482,2.74433733,61292.0,61291.0,0.000574]
[1727870440938,2.74433733,61292.0,61291.0,0.000274]
[1727870441394,2.74833733,61292.0,61291.0,0.000274]
[1727870441617,2.74233733,61292.0,61291.0,0.000274]
[1727870442058,2.75633733,61292.0,61291.0,0.001274]
[1727870442274,2.75933733,61292.0,61291.0,0.001274]
[1727870442797,2.75633733,61292.0,61291.0,0.001274]
[1727870443019,2.77233733,61292.0,61291.0,0.002274]
[1727870443260,2.79792523,61292.0,61291.0,0.002274]
[1727870443482,5.38533323,61292.0,61291.0,0.002274]
[1727870443700,5.14533323,61292.0,61291.0,0.002274]
[1727870443917,4.90533323,61292.0,61291.0,0.002274]
[1727870444140,4.89133323,61292.0,61291.0,0.001274]
[1727870444386,0.53122233,61288.0,61287.0,0.000819]
[1727870444608,2.93911306,61288.0,61287.0,0.000819]
[1727870445914,2.95311306,61288.0,61287.0,0.001819]
[1727870446433,2.96711306,61288.0,61287.0,0.002819]
[1727870446869,3.41338406,61288.0,61287.0,0.002819]
[1727870447978,3.43897364,61288.0,61287.0,0.002819]
[1727870448194,3.41297364,61288.0,61287.0,0.002819]
[1727870448405,3.37697364,61288.0,61287.0,0.002819]
[1727870450223,3.11989264,61288.0,61287.0,0.002819]
[1727870450447,2.99287864,61288.0,61287.0,0.002819]
[1727870450675,3.00993941,61288.0,61287.0,0.002819]
[1727870450908,2.76993941,61288.0,61287.0,0.002819]
[1727870452493,2.70934741,61288.0,61287.0,0.002819]
[1727870452998,2.68575783,61288.0,61287.0,0.002819]
[1727870453666,2.71134777,61288.0,61287.0,0.002819]
[1727870455142,2.70934777,61288.0,61287.0,0.002819]
[1727870455393,2.71134777,61288.0,61287.0,0.002819]
[1727870456382,2.70934777,61288.0,61287.0,0.002819]
[1727870456871,2.71134777,61288.0,61287.0,0.002819]
[1727870457665,2.64592555,61288.0,61287.0,0.002819]
[1727870458415,0.16515133,61277.0,61276.0,0.000819]
[1727870458634,2.80918184,61277.0,61276.0,0.000819]
[1727870458854,2.79725584,61277.0,61276.0,0.000819]
[1727870459058,2.67092384,61277.0,61276.0,0.000819]
[1727870459307,1.95244784,61277.0,61276.0,0.000819]
[1727870459539,0.35105133,61277.0,61276.0,0.000819]
[1727870459973,0.47322084,61277.0,61276.0,0.000819]
[1727870460753,0.48122084,61277.0,61276.0,0.000819]
[1727870461417,0.49022084,61277.0,61276.0,0.000819]
[1727870461853,0.51581299,61277.0,61276.0,0.000819]
[1727870462553,0.29064348,61277.0,61276.0,0.000819]
[1727870462771,0.04455048,61277.0,61276.0,0.000819]
[1727870462998,0.01895833,61277.0,61276.0,0.000819]
[1727870464052,0.01895833,61277.0,61276.0,0.02458897]
[1727870464511,0.017,61277.0,61276.0,0.18778497]
[1727870464680,0.009,61277.0,61276.0,0.18778497]
[1727870464923,0.009,61277.0,61276.0,0.28663652]
[1727870465116,0.013,61277.0,61276.0,0.41180603]
[1727870465616,0.009,61277.0,61276.0,0.28663652]
[1727870466168,0.03458841,61277.0,61276.0,0.28663652]
[1727870466488,0.03654674,61277.0,61276.0,0.02458897]
[1727870466699,0.02754674,61277.0,61276.0,0.02458897]
[1727870467503,0.00695833,61277.0,61276.0,0.02458897]
[1727870467708,0.00795833,61277.0,61276.0,0.02858897]
[1727870468123,0.00695833,61277.0,61276.0,0.02458897]
[1727870468322,0.00195833,61277.0,61276.0,0.02758897]
[1727870468526,0.00195833,61281.0,61276.0,0.07947247]
[1727870468758,0.00195833,61286.0,61278.0,0.32638]
[1727870469015,0.0826,61294.0,61280.0,0.326369]
[1727870469016,0.00195833,61289.0,61280.0,0.326369]
[1727870469272,0.00195833,61289.0,61288.0,0.163164]
[1727870469785,0.01706077,61294.0,61290.0,0.163158]
[1727870470020,0.00195833,61295.0,61290.0,0.163158]
[1727870470243,0.00359633,61291.0,61290.0,0.18727552]
[1727870470474,0.02917802,61291.0,61290.0,0.18727552]
[1727870470705,0.02917802,61291.0,61290.0,0.02411752]
[1727870470959,0.02917802,61291.0,61281.0,0.32636]
[1727870471209,0.02917802,61291.0,61276.0,0.65717511]
[1727870471210,0.00495833,61281.0,61280.0,0.163183]
[1727870471457,0.00295833,61281.0,61280.0,0.163183]
[1727870471781,0.00195833,61280.0,61276.0,0.000819]
[1727870471985,0.00195833,61280.0,61279.0,0.163188]
[1727870472453,0.00195833,61278.0,61276.0,0.000819]
[1727870472922,0.00195833,61277.0,61276.0,0.2132202]
[1727870473444,0.00195833,61277.0,61276.0,0.0500252]
[1727870473813,0.00195833,61277.0,61276.0,0.164015]
[1727870474014,0.001,61281.0,61276.0,0.000819]
[1727870474233,0.001,61281.0,61279.0,0.163186]
[1727870474434,0.001,61281.0,61276.0,0.000819]
[1727870474435,0.00195833,61288.0,61283.0,0.163176]
[1727870474727,0.00195833,61288.0,61276.0,0.000819]
[1727870474937,0.001638,61287.0,61282.0,0.163177]
[1727870475139,0.02722458,61287.0,61283.0,0.489524]
[1727870475349,0.00195833,61284.0,61283.0,0.489527]
[1727870475852,0.00195833,61284.0,61283.0,0.163177]
[1727870476210,0.02722458,61287.0,61286.0,0.163169]
[1727870476693,0.001638,61287.0,61286.0,0.163169]
[1727870477648,0.001638,61287.0,61286.0,0.165169]
[1727870479100,0.001638,61287.0,61286.0,0.18931529]
[1727870479819,0.001638,61287.0,61286.0,0.1925786]
[1727870480054,0.001638,61287.0,61286.0,0.36419759]
[1727870480288,0.001638,61287.0,61286.0,0.52029759]
[1727870480753,0.001138,61287.0,61286.0,0.52029759]
[1727870480973,0.02671968,61287.0,61286.0,0.52029759]
[1727870481192,0.02771968,61287.0,61286.0,0.52029759]
[1727870481868,0.001638,61291.0,61290.0,0.195888]
[1727870482079,0.001638,61291.0,61290.0,0.55946948]
[1727870482307,0.001638,61291.0,61290.0,0.58021068]
[1727870482536,0.001638,61291.0,61290.0,0.68021068]
[1727870482989,0.002638,61291.0,61290.0,0.68921068]
[1727870483229,0.002638,61291.0,61290.0,1.0149883]
[1727870483450,0.002638,61291.0,61290.0,1.0059883]
[1727870483669,0.001638,61291.0,61290.0,1.0059883]
[1727870483917,0.003638,61291.0,61290.0,1.0159883]
[1727870484112,0.002638,61291.0,61290.0,1.0159883]
[1727870484393,0.003638,61291.0,61290.0,1.0159883]
[1727870484620,0.24535261,61318.0,61314.0,0.163094]
[1727870484838,0.24535261,61318.0,61314.0,0.41036473]
[1727870485066,0.24535261,61318.0,61317.0,0.195816]
[1727870485290,0.02639393,61322.0,61321.0,0.163076]
[1727870485733,0.000819,61322.0,61321.0,0.17767089]
[1727870485938,0.000819,61322.0,61321.0,0.31562302]
[1727870486579,0.001819,61322.0,61321.0,0.32462302]
[1727870487468,0.002819,61322.0,61321.0,0.33262302]
[1727870487903,0.00477733,61322.0,61321.0,0.16954702]
[1727870488109,0.00477733,61322.0,61321.0,0.03159489]
[1727870488601,0.00477733,61322.0,61321.0,0.02733727]
[1727870489048,0.03034675,61322.0,61321.0,0.02733727]
[1727870491451,0.21448842,61322.0,61321.0,0.02733727]
[1727870491667,1.05207575,61322.0,61321.0,0.02733727]
[1727870491890,1.05207575,61322.0,61321.0,0.017]
[1727870492321,1.05107575,61322.0,61321.0,0.008]
[1727870492529,1.05107575,61322.0,61321.0,0.009]
[1727870492947,1.02550633,61322.0,61321.0,0.009]
[1727870493160,1.02550633,61322.0,61321.0,0.008]
[1727870493404,1.03050633,61322.0,61321.0,0.009]
[1727870493622,1.02950633,61322.0,61321.0,0.001]
[1727870493836,1.05607872,61322.0,61321.0,0.001]
[1727870494313,1.05507872,61322.0,61321.0,0.001]
[1727870494495,1.06207872,61322.0,61321.0,0.002]
[1727870498260,1.03650633,61322.0,61321.0,0.002]
[1727870499785,0.163102,61311.0,61310.0,0.24535261]
[1727870500011,2.09925769,61311.0,61310.0,0.24535261]
[1727870500232,2.03730269,61311.0,61310.0,0.25576944]
[1727870500462,0.245118,61305.0,61304.0,0.001638]
[1727870500697,0.082,61305.0,61304.0,0.001638]
[1727870501151,0.082,61305.0,61304.0,0.01206394]
[1727870501366,0.10757826,61305.0,61304.0,0.01206394]
[1727870501601,0.11357826,61305.0,61304.0,0.002638]
[1727870501809,0.27669626,61305.0,61304.0,0.002638]
[1727870502024,0.27069626,61305.0,61304.0,0.001638]
[1727870502941,0.245118,61305.0,61304.0,0.001638]